{"text_format":"1","workbook":"xlsx","n_sheets":4,"sheets":["1","المرحلة الأولى","المرحلة الثانية","SMART"],"not_rendered":{"charts":0,"images":1,"macros":1,"external_links":0,"defined_names":1,"comments":0,"pivot_tables":0},"unopened":[],"bounds":{"document_bytes":16777216,"sheet_cells":100000,"rows_first":2000,"rows_last":500,"rows_between":2000,"halvings":0,"cell_chars":16384,"cell_head_chars":4096},"cells_cut":0,"cells_raw":0,"read":"whole","date_system":"1900"}

{"sheet":"1","index":0,"n_rows":380,"n_cols":5,"rows_kept":380,"cut":false,"hidden":false,"merged":[]}
[]
["م","الرقم الوظيفي","الإسم","الإدارة","الوظيفة"]
[1,114,"Abd Rabu Anwar Ali","Reception","Marketing Manager"]
[{"$f":"A3+1","v":2},136,"Yehia Antar Yehia El Sayed","Reception","Reservation Officer"]
[{"$f":"A4+1","v":3},139,"Osama Mahmoud Hashem Mahmoud","Reception","Front Office Supervisor"]
[4,160,"Talal Fawzy Hussein Ezah","Reception","Reservation Officer"]
[5,161,"Rashad Kamal Gayed Youssef","Reception","Receptionist"]
[6,163,"Tamer Mohamed Khamis Aly","Reception","Receptionist"]
[7,164,"Mohamed Mahmoud Ramadan Abdelsattar","Reception","Receptionist"]
[8,165,"Aya Mousued mostafa Said","Reception","Reservation Officer"]
[9,166,"Mohamed Hassan Attia Ibrahim Ashour","Reception","Receptionist"]
[10,168,"Peter Hanna Noshi Zaki","Reception","Receptionist"]
[11,169,"Fawzi Faisal Fawzi Alkhadhraa","Reception","Receptionist"]
[12,265,"Hamed Galal Ahmed Hussein","Reception","Reservation Officer"]
[13,716,"Mahrous Rezk Ali El Sherif","Reception","Receptionist"]
[14,200,"Musthaq Hussain Puman Ibrahim","Housekeeping","Room Boy"]
[15,201,"Shoeb Alam Mohd Aslam Noori","Housekeeping","Room Boy"]
[16,202,"Muhammed Rafi Noushad","Housekeeping","Room Boy"]
[17,203,"Syed Ashraf Syed Afsar","Housekeeping","Room Boy"]
[18,206,"Ameen Arshad Irshad Ahmad","Housekeeping","Room Boy"]
[19,208,"Akram Ibrahim Mohamed Abdelaziz","Housekeeping","Order Taker"]
[20,209,"Hydar Ali Khan Abdul Rehman Khan","Housekeeping","Room Boy"]
[21,210,"Chiristophar Peter Pereira","Housekeeping","House-Keeping Coordinator"]
[22,211,"Mehdi Raza Garibul Jasan","Housekeeping","Room Boy"]
[23,212,"Amelia De los Santos Pimentel","Housekeeping","Chambermaid"]
[24,213,"Mohamaad Rizwan Ibrahim","Housekeeping","Room Boy"]
[25,216,"Aldrin Andrew Rodrigues","Housekeeping","House-Keeping Coordinator"]
[26,217,"Mahesh Govind Narvekar","Housekeeping","Room Boy"]
[27,218,"Francisca Bondoc Navarro","Housekeeping","Public Area Supervisor"]
[28,220,"Salian Sudheer Shridhar","Housekeeping","Room Boy"]
[29,222,"Gladson Olwin Dsouza","Housekeeping","Room Boy"]
[30,223,"Baby Ann Manuel Chavez","Housekeeping","Chambermaid"]
[31,224,"Loisa Cerillo Chavez","Housekeeping","Chambermaid"]
[32,225,"Rahul Tiwari Khyali Dutt","Housekeeping","Room Boy"]
[33,226,"Yugal Kishor Singh","Housekeeping","Room Boy"]
[34,227,"Asadul Shaikh Sirajul","Housekeeping","Room Boy"]
[35,230,"Yacob Avija Ramaiah Avija","Housekeeping","Room Boy"]
[36,231,"Froilan Obor Cordeta","Housekeeping","House-Keeping Coordinator"]
[37,233,"Wilfredo Calilung Esguerra","Housekeeping","House-Keeping Coordinator"]
[38,235,"Abdelhakim Abdelgawad Shaaban El Seady","Housekeeping","Executive Housekeeper"]
[39,236,"Maximillian Surima Cotiangco","Housekeeping","Room Boy"]
[40,238,"John Vic Zerrudo Briones","Housekeeping","Room Boy"]
[41,239,"Jezreel Edward Malibiran","Housekeeping","Room Boy"]
[42,240,"Gerald Giray Calzado","Housekeeping","Room Boy"]
[43,244,"Pankaj Kumar Dubey","Housekeeping","Room Boy"]
[44,249,"Nazrul Molla Panjab Molla","Housekeeping","Tailor"]
[45,256,"Hatem Ali Mahmoud Shokr","Housekeeping","Assistant House-Keeping Administrator"]
[46,262,"John Paul capco Cabigting ","Housekeeping","Room Boy"]
[47,264,"Mary Jean Corpuz Casupang","Housekeeping","House-Keeping Coordinator"]
[48,268,"Elfrasier Dammang Gomez","Housekeeping","Room Boy"]
[49,274,"Merjun Ladja sajili","Housekeeping","Room Boy"]
[50,284,"Jayson Doctolero Estonilo","Housekeeping","Room Boy"]
[51,287,"Oscar JR Dela cruz Revilla","Housekeeping","Room Boy"]
[52,288,"Darwin Jayarea Majid","Housekeeping","Room Boy"]
[53,290,"Vinod Vishnu Sawant","Housekeeping","House-Keeping Coordinator"]
[54,291,"Angelo Carino Misa","Housekeeping","Room Boy"]
[55,302,"Elmundo Godoy Tadiarca","Housekeeping","House-Keeping Coordinator"]
[56,306,"Mahesh Sitaram  Gadekar","Housekeeping","Linen Supervisor"]
[57,309,"Rajithkumar Sreekumar","Housekeeping","Room Boy"]
[58,320,"Ralph Salvador Juan Ragudos","Housekeeping","Room Boy"]
[59,327,"Omar Faruque Khan","Housekeeping","House-Keeping Coordinator"]
[60,330,"Roshan Christoper Serrao","Housekeeping","Room Boy"]
[61,332,"Roselyn Desquitado Bantayan","Housekeeping","Chambermaid"]
[62,333,"Lorlanie Cruz Salvacion","Housekeeping","Chambermaid"]
[63,334,"Nilesh Kubender Pawar","Housekeeping","Room Boy"]
[64,335,"Arjun Ravichandran","Housekeeping","Room Boy"]
[{"$f":"A66+1","v":65},337,"Mohammad Jafar Chand Basha","Housekeeping","Room Boy"]
[66,338,"Shohel Arju Miah","Housekeeping","Room Boy"]
[67,342,"Randy Viovicente Codilla","Housekeeping","Assistant House-Keeping Administrator"]
[68,344,"Peter Prem Estebeiro","Housekeeping","Room Boy"]
[69,345,"Rafael Bueno Gamotea","Housekeeping","Room Boy"]
[70,346,"Abigail Jaring Puno","Housekeeping","Chambermaid"]
[71,348,"Sebastiao Fernandes Mariano","Housekeeping","Linen Supervisor"]
[72,350,"Freddierick Morante Lurion","Housekeeping","Room Boy"]
[73,351,"Brian Tempprosa Panes","Housekeeping","Room Boy"]
[74,353,"Leonel Tolentino Rodriguez","Housekeeping","Room Boy"]
[75,354,"Jay Ar Rayo Burac","Housekeeping","Room Boy"]
[76,356,"MD Tanveer Alam","Housekeeping","Room Boy"]
[77,357,"Sono Kumar Sahiram","Housekeeping","Room Boy"]
[78,358,"Asif Farooqui Mohd Mustaquim","Housekeeping","Room Boy"]
[79,359,"Ahmed Gamal Abdelhamid Gad","Housekeeping","House-Keeping Coordinator"]
[80,360,"Antonio JR Andales Aquino","Recreation","Recreation Programmer"]
[81,362,"Roy Mathew Mathew","Recreation","Laborer"]
[82,363,"Fouad Mahmoud Abdelmeguid Darwish","Recreation","Laborer"]
[83,367,"Moustafa Mohamed Sabee Elsayed Mohamed","Recreation","Laborer"]
[84,368,"Fouad Mostafa Mohamed Ahmed Elhendawy","Recreation","Recreation Supervisor"]
[85,369,"Hesham Mohamed Moustafa Mohamed Mehalhal","Recreation","Recreation Programmer"]
[86,370,"Shaik Shahinsha Shaik Masthan","Recreation","Driver, Heavy Equipment"]
[87,371,"  Johnson Porathukkaran Rappai","Recreation","Laborer"]
[88,396,"Noor Mohamed Mohamed Shafi","Recreation","Laborer"]
[89,397,"Maria Carolina Cortez Narciso","Recreation","Recreation Programmer"]
[90,419,"Ahmed Fadl Mohamed Ahmed","Baraha","Waiter"]
[91,433,"Anwar Mohamed Anwar Bdar","Baraha","Head Waiter"]
[92,443,"Khodadad Ali Dad","Baraha","Cook"]
[93,456,"Mohamed Mohamed Ibrahim Mohamed","Baraha","Cook"]
[94,465,"Wael Attia Mohamed Attia","Baraha","Captain"]
[95,470,"Hani Eslaman Adly Soliman","Baraha","Cook"]
[96,473,"Fathi Fathi Ahmed Mostafa","Baraha","Waiter"]
[97,476,"Abdelaziz Talaat Abdelaziz Aly ","Baraha","Cashier"]
[98,478,"Samad Salimun Nisha Alau","Baraha","Cook"]
[99,491,"Eslam Lotfy Ali Eltony","Baraha","Waiter"]
[100,495,"Mahmoud Mohamed Mahmoud Salman","Baraha","Waiter"]
[101,496,"Toumas Samy Shawky Shoukralla","Baraha","Waiter"]
[102,501,"Reda Elsayed Mohamed Shebl Elnaggar","Baraha","Butcher"]
[103,503,"Ahmed Saber Kamel Saad","Baraha","Waiter"]
[104,505,"Samir Gaffar Elsayed Amin","Baraha","Cook"]
[105,515,"Ashraf Elsayed Ismail Ibrahim","Baraha","Waiter"]
[106,516,"Mahmoud Salah Abdelhakam Abdelmaksod","Baraha","Waiter"]
[107,517,"Abdelrahman Aly Abdelnaby Moustafa Zaid","Baraha","Waiter"]
[108,518,"Mokles Shamsul Hoque","Baraha","Waiter"]
[109,519,"Emad Mohamed Said Elafandy","Baraha","Waiter"]
[110,520,"Mohamed Maher Ibrahim Salem","Baraha","Cashier"]
[111,587,"Hossam Abdelfattah Ahamed Abdelmawgoud","Baraha","Captain"]
[112,590,"Ali Zafar Ali Juma","Baraha","Cook"]
[113,1417,"Atef Gamal Khediry Nagdy","Baraha","Cook"]
[114,1512,"Rezk Ali Mazid Ismail","Baraha","Assistant Waiter"]
[115,404,"Salvador Escabillas Estremera","F&B","Laborer"]
[116,420,"Anup Ghose Asit","F&B","Cook"]
[117,428,"Riyas Ambayathode Malayil","F&B","Laborer"]
[118,430,"Rahees Ambaya Thode","F&B","Laborer"]
[119,434,"Ardiel Abanes Gayo","F&B","Assistant Cook"]
[120,435,"Michael Espinosa Pajaro","F&B","Assistant Cook"]
[121,437,"Caetano Mario Cardoso","F&B","Chief Laborer"]
[122,438,"Terence John Vinegas Labayne","F&B","Laborer"]
[123,441,"Santhosh Panneri Karunan Late","F&B","Laborer"]
[124,446,"Joshi Kuriakose Puthankudi","F&B","Waiter"]
[125,448,"Jayesh Kodakkal","F&B","Waiter"]
[{"$f":"A127+1","v":126},449,"Mujeeb Rahman Kulattu Tharammal","F&B","Laborer"]
[127,454,"Mohammed Abdul Hannan Syed Ali","F&B","Storekeeper"]
[128,455,"Ramil Villalobos De Castro","F&B","Cook"]
[129,460,"Jay Ignacio Macabinguil","F&B","Head Waiter"]
[130,475,"Veera Pandian Gajendiran","F&B","Sous Chef"]
[131,497,"Sherif Elmetwalli Abdelazim Ahmed","F&B","Waiter"]
[132,499,"Janet Navarro Lumba","F&B","Waitress"]
[133,506,"Retheesh Kambath Ravi","F&B","Laborer"]
[134,508,"Nino Paulo Contreras Papa","F&B","Assistant Waiter"]
[135,509,"Janette Nicolas Abogado","F&B","Waitress"]
[136,510,"Sahajan Biswas Namajuddin","F&B","Cook"]
[137,511,"Taimoor Ahmad Khan Hakeek","F&B","Waiter"]
[138,512,"Mohamed Abdelfattah Mabrouk Abdelfattah Elnaggar","F&B","Waiter"]
[139,513,"Tajamul Mallick Tobarak Mallick","F&B","Chef De Partie"]
[140,514,"Yahkoob Pallithodi Hamza","F&B","Assistant Cook"]
[141,522,"Derilom Rodel Dalisay","F&B","Cook"]
[142,531,"Albert Fernandes","F&B","Butcher"]
[143,546,"Wafi  Zidan Dyab  Abd el Aal","F&B","Head Waiter"]
[144,583,"Vilbert Atiga Guiang","F&B","Head Waiter"]
[145,588,"Mohamed Mahmoud Mohamed Abdelrehim","F&B","Chef De Partie"]
[146,828,"Mohammed Iqbal Derlakatte","F&B","Cashier"]
[147,1857,"Mar Alvin Marin Falculan","F&B","Waiter"]
[148,613,"Sakhawat Abdul Nabi  Ansari","Laundry","Laborer"]
[149,626,"Canute Harsha Mascarenhas","Laundry","Laundry Shift Leader"]
[150,627,"Rosval  Lacsa Javier","Laundry","Laborer"]
[151,629,"Muraleedharan Elamkulath Vasudevan","Laundry","Laundry Supervisor"]
[152,634,"Dipok Mazumder Monoranjan Mazumder ","Laundry","Laborer"]
[153,636,"Sunil Kumar Ram Khelawan","Laundry","Laborer"]
[154,640,"Rosareo Fernandes ","Laundry","Laborer"]
[155,649,"Rizwan Suleman Sarang Suleman","Laundry","Laborer"]
[156,651,"Rambilas Ragaram Prabhudai","Laundry","Laundry Shift Leader"]
[157,656,"Praveen Arimbanthodi Gonidan kutty","Laundry","Laborer"]
[158,658,"Sachidanandan Elamkulath","Laundry","Laborer"]
[159,660,"Kesavadas Kunnamattu Cholakunna","Laundry","Laborer"]
[160,661,"Algier Morillo Montealegre","Laundry","Laborer"]
[161,717,"Essam Saad Yehia Mohamed","Operator","Telephone Operator"]
[162,724,"Mohamed Abdelgawad Mohamed Elghareb","Operator","Telephone Operator"]
[163,725,"Emad Nabil Mahmoud Abdelrahman","Operator","Telephone Operator"]
[164,726,"Moataz Mohamed Mahmoud Mohamed","Operator","Telephone Operator"]
[165,816,"Rolando Caspe Robinos","Marina","Service Laborer"]
[166,830,"Sabry Abdelkrim Maray Ashour","Marina","Assistant Marina Supervisor"]
[167,833,"Nilesh Jaganath Sanke","Marina","Laborer"]
[168,836,"Vasim Mahmmadajan Yallapurkar","Marina","Laborer"]
[169,837,"Joberty Selvadas Selvadas","Marina","Laborer"]
[170,838,"Herman Selvadas Selvadas","Marina","Laborer"]
[171,839,"Sahaya Brund Jerin Tiburcian","Marina","Laborer"]
[172,840,"Saleh Gomaa Salem Aboubakr","Marina","Laborer"]
[173,841,"Mahmoud Abouelfetouh Rizk Selim","Marina","Laborer"]
[174,843,"Rubel Shah Jahan","Marina","Laborer"]
[175,845,"Hafizur Rahman Mohammad Ali","Marina","Laborer"]
[176,846,"MD Jahangir Alam Abdul Mannan","Marina","Laborer"]
[177,849,"Abdul Rab Md. Ishaque ","Marina","Laborer"]
[178,853,"Arjun kumar Naran BhaiTandel","Marina","Laborer"]
[179,854,"Umesh Trimbak  Jadekar  ","Marina","Driver, Heavy Equipment"]
[180,859,"Abouelfetouh Ahmed Abouelfetouh Waheb","Marina","Marina Foreman"]
[181,860,"Hazem Hassan Hassan Aashour","Marina","Marina Foreman"]
[182,863,"Hussam Elsayed Moussa Elaw","Marina","Marina Foreman"]
[183,864,"Samir Abdelazeem  Hassan Ashour","Marina","Researcher, Administrative"]
[184,871,"Rabiey Kamel Moursy Ahmed","Marina","Laborer"]
[185,872,"Hany Mohamed Khalifa Abdalla","Marina","Laborer"]
[186,874,"Shawkat Gamal Elsayed Mohamed","Marina","Laborer"]
[187,875,"Mohamed Ahmed Moursy Ahmed","Marina","Laborer"]
[{"$f":"A189+1","v":188},876,"Mohamed Abdalla Sheta Moursy","Marina","Laborer"]
[189,877,"Sami Moustafa Abdelrahman Gamal","Marina","Laborer"]
[190,880,"Ashraf Abdelkarim Abdelnaby Sayed","Marina","Laborer"]
[191,881,"Zahoor Abdul  Azeez Mastan","Marina","Service Laborer"]
[192,887,"Issam Ali Mohamed Rezk","Marina","Laborer"]
[193,888,"Mohamed Fetouh Mohamed Aly Elhefnawy","Marina","Laborer"]
[194,892,"Mahmoud Mousa Mansour Eisa","Marina","Driver"]
[195,895,"Ehab Fath Elbab Ibrahim Abdalla","Marina","Marina Foreman"]
[196,896,"Hipolito Fernandes Jose Fernandes","Marina","Laborer"]
[197,897,"Mandhar Sawant Dessai Nanda","Marina","Laborer"]
[198,898,"Wael Mahmoud Mouhran Ali","Marina","Laborer"]
[199,1448,"Ali Abdelhamid Younes Hassane ","Marina","Driver"]
[200,1492,"Prasanna Ajith Kumara Athmagage","Marina","Mechanical Technician"]
[201,641,"Isabilito Cunlo Tan","Game Center","Cashier"]
[202,894,"Mohammad Umar Mohammad Hashim","Game Center","Public Area Supervisor"]
[203,933,"Mohamed Abdelmohsen Saad Hussein","Game Center","Cashier"]
[204,934,"Ronald Velarde Pelino","Game Center","Bowling Mechanic"]
[205,938,"Cezar Ryan Magtoto Udiong","Game Center","Cashier"]
[206,939,"Christian Paul Penaflor","Game Center","Computer Operator"]
[207,949,"Roger Jr.  Relleta Monte ","Game Center","First Electronic Technician"]
[208,965,"Ratnacar Prabhakar Kharbe","Game Center","Bowling Operator"]
[209,977,"Edmundo Sacor Laysico","Game Center","Electronic Technician"]
[210,978,"Narayan Muddam Ellaiah","Game Center","Laborer"]
[211,981,"Awad Abdullah Mubarak Binjumaan","Game Center","Cashier"]
[212,1001,"Naser Abdulrazzaq Ibrahim Qaddoumi","Executive Office","General Manager"]
[213,1019,"Bernadette Sinay Mandac","Executive Office","Executive Secretary"]
[214,1026,"Ahmed Eldib Mohamed Khir","Executive Office","Representative"]
[215,1027,"Mohamed Ahmed Noureldin Mousa","Executive Office","Driver"]
[216,1336,"Yosry Kmal Abdelhakim Othman","Executive Office","Night Watchman"]
[217,403,"Christine Bacos Maraan","Finance","Senior Secretary"]
[218,489,"Elsayed Ahmed Hashem Hussein","Finance","Accountant"]
[219,1134,"Ibrahim Abdallah Elsayed Ibrahim","Finance","Accountant"]
[220,1138,"Tarek  Ahmed  Elsayed Ahmed","Finance","Senior Cashier"]
[221,1140,"Ahmed Fahmi Mohamed Elbadri","Finance","Financial Manager"]
[222,1153,"Salah Mahmoud Abdelaziz","Finance","Chief Accountant"]
[223,1157,"Maurice Sebastian Pereira","Finance","Storekeeper"]
[224,1171,"Remoun Ezzat Nasrallah Attaallah","Finance","Accountant"]
[225,1172,"Raed Eid Mahmoud Elkazragi","Finance","Food Cost Controller"]
[226,1175,"Amr Mohamed Mahrous Mohamed Radi","Finance","Accountant"]
[227,1187,"Abdelazim Abouelfetouh Ahmed Waheb","Finance","Accountant"]
[228,1191,"Chitrarasan Elangovan Elangovan","Finance","Assistant Storekeeper"]
[229,1193,"Febby Charivupurayidam John","Finance","Accounting Clerk"]
[230,1194,"Abdelaziz Mohamed Abdelaziz Ibrahim","Finance","Cashier"]
[231,1195,"Osama Abdelfattah Abdelfattah Elmorshedy","Finance","Accountant"]
[232,1196,"Muhieddine Michli ","Finance","Assistant Financial Manager "]
[233,1197,"Mohamed Metwally Ibrahim Metwally Montaser","Finance","Cashier"]
[234,1158,"Sharique Abdulwahab Ukaye","Information technology","Computer Department Head"]
[235,1177,"Anu James Kerikkattil Mathai","Information technology","Computer Operator"]
[236,304,"Ma. Corazon Gonzales Ramos","Purchasing","Purchasing Officer "]
[237,1184,"Ahmed Ali Mahmoud Ali Elshal","Purchasing","Purchasing Supervisor"]
[238,1226,"Sharifa Gadakari Gadakari","Purchasing","Secretary"]
[239,1495,"Khaled Mohamed Aly Aboubakr","Purchasing","Purchasing Representative"]
[240,1180,"Emil Zarif Anwar Mounes","Security","Cashier"]
[241,1328,"Khaled Mohamed Elkabbaz","Security","Security Supervisor"]
[242,1337,"Basem Abdalla Kelany Beaizak","Security","Security Coordinator"]
[243,1339,"Hamoud Sayer Ojaimi Alenezi","Security","Security Officer"]
[244,1341,"Mohammed Jassim Yousef Al Yousef","Security","Security Officer"]
[245,1342,"Mohammed Jaber Matar Abd","Security","Security Officer"]
[246,1343,"Meshari Ahmed Mohamed Sadeq","Security","Security Officer"]
[247,1345,"BADER N H I A AlSHIMALI","Security","Security Officer"]
[248,1346,"Ahmed Saud Ali Alnughaimesh","Security","Security Officer"]
[249,1347,"Jassim Mohammad Muhanna Abdulhay","Security","Security Officer"]
[{"$f":"A251+1","v":250},1178,"ABDULSAMAD AHMED MIYAN PARVE","Engineering","Assistant Storekeeper"]
[251,1408,"Mohammed Khan Pathan","Engineering","A/C Technician"]
[252,1415,"Israr Ahmed Siddiqui","Engineering","Painter"]
[253,1418,"Nour Ahmed Moursy Ahmed","Engineering","Gardener"]
[254,1419,"Condemar Ronquillio Fernandes","Engineering","Electrical Technician"]
[255,1420,"Safwat Kamel Moursy Ahmed","Engineering","Gardener"]
[256,1421,"Shaaban Ahmed Sabra Mohamed","Engineering","Assistant Technician"]
[257,1424,"Ahmed Elsayed Moursy Ahmed","Engineering","Gardener"]
[258,1428,"Jose Botelho Joao Botelho","Engineering","Senior Plumber"]
[259,1429,"Hani Khalaf Attia Gadalla","Engineering","Irrigation Plumber"]
[260,1430,"Masud Abul  Bashar","Engineering","A/C Technician"]
[261,1431,"Udaya Nath Sahu Bairagi Sahu","Engineering","Plumber"]
[262,1434,"Atef Fouad Khalil Abd Rabou","Engineering","Assistant Supervisor Gardener"]
[263,1441,"Sanjay Kumar Gupta Nathuni","Engineering","Welder"]
[264,1443,"Alaa Sobhy Helal Ryad","Engineering","Gardener"]
[265,1445,"MOAWAD KAMAL KAMEL MOAWAD","Engineering","Gardener"]
[266,1449,"Bekhit Fekry Gad Gaballa","Engineering","Gardener"]
[267,1450,"Ananda Chandra Sethi","Engineering","Plumber"]
[268,1452,"Iliyas Hasan Miyan Solkar","Engineering","A/C Technician"]
[269,1454,"Zulfar Husain shaikh","Engineering","A/C Technician"]
[270,1457,"Ajo Vattapparampil Mathew","Engineering","A/C Technician"]
[271,1462,"Basheer Kurakundhan Hyder Kurakundhan","Engineering","Electrical Technician"]
[272,1463,"Hazem Abdelraouf Attia Mohamed","Engineering","Agriculture Supervisor"]
[273,1464,"Viji Varughese","Engineering","Electrical Technician"]
[274,1465,"Walid Abdel Aal Hussein","Engineering","Gardener"]
[275,1470,"Ayman Mohamed Koubisy Nagdy","Engineering","Gardener"]
[276,1472,"Atef Ali Hashem Sayed Ahmed","Engineering","Gardener"]
[277,1475,"Vinsu Susan Wilson","Engineering","Draftsman "]
[278,1476,"Chandrasekhara Kurup Raghavakurup","Engineering","Electrical Technician"]
[279,1477,"Mahrous Lamey Radana Abdelmessih","Engineering","Gardener"]
[280,1478,"Atef Hossni Mohamed Mohamed","Engineering","Gardener"]
[281,1480,"Said Araby Ibrahim Ahmed","Engineering","Gardener"]
[282,1481,"Jose Ramaswamy","Engineering","Mason"]
[283,1483,"Sabet Gouda Nakhla Abdelshahid ","Engineering","Senior Irrigation Plumber"]
[284,1486,"Mahmoud Abdelhamid Abdelhamid Ibrahim","Engineering","Assistant Technician"]
[285,1487,"Christopher Michael  Serrao","Engineering","First  Mechanic"]
[286,1489,"Mohamed Aly Mohamed Ahmed","Engineering","Gardener"]
[287,1491,"Richard Natalio Roxas","Engineering","Mechanical Technician"]
[288,1493,"Franklin Mandac Sinay","Engineering","Electrical Technician"]
[289,1494,"Chetan Gurudas Bhosle","Engineering","A/C Supervisor"]
[290,1496,"Ahmed Omar Ibrahim Abdelfattah","Engineering","Gardener"]
[291,1499,"Nadeem Fakhruddin Khan","Engineering","Electronic Technician"]
[292,1500,"Dinesh Nishad","Engineering","Carpenter"]
[293,1501,"Amr Reda Ibrahim Abdelfattah","Engineering","Gardener"]
[294,1502,"Mamdouh Mohamed Nagdy Mohamed","Engineering","Gardener"]
[295,1503,"Dharmarasu Kamalalakannan Dharmarasu","Engineering","Carpenter"]
[296,1504,"MD Irfan Khan","Engineering","STP Operator"]
[297,1505,"Hamed Riaz","Engineering","Assistant Technician"]
[298,1507,"Benjamin Baby Vattuvelil Baby","Engineering","Assistant Maintenance Manager,Mechanical"]
[299,1508,"MD Khaza Asif Ali Hadi","Engineering","A/C Technician"]
[300,1509,"Shahbaj Ahmed Ashfaque Ahmed","Engineering","Electrical Technician"]
[301,1511,"Muhammad Hanif  Muhammad Yaqoob","Engineering","Mason"]
[302,1514,"Shahhat Khair Shehata Abdelmalak","Engineering","Gardener"]
[303,1515,"Mounir Gaid Nakhlla Abd El Shahid","Engineering","Senior Gardener"]
[304,1516,"Balaram Pandurang Dhanji","Engineering","Plumber"]
[305,1517,"Isagani Martillan Caratol","Engineering","Carpenter"]
[306,1518,"Alex Thomas V A Thomas","Engineering","Electrical Technician"]
[307,1519,"Jose Varghese Nampan Varghese","Engineering","Maintenance Manager"]
[308,1520,"Abdullah Saeed Asower Naseb","Engineering","Gardener"]
[309,1521,"Abdullah Saad Salem Bin Barek","Engineering","Driver, Heavy Equipment"]
[310,1522,"Radha Krishna Pillai Bhadran Nair","Engineering","Painter"]
[311,1523,"Gamal Nabil Barakat Elhelaly","Engineering","Mechanical Technician"]
[312,1532,"Nabil Saadalla Gaied  Ebied","Engineering","Irrigation Plumber"]
[313,1533,"Elenor Hari Veluya","Engineering","Secretary"]
[{"$f":"A315+1","v":314},1534,"Mohamed Jameel  Abdul Solam Narwal","Engineering","Storekeeper"]
[315,1538," Abdul Rahim Xec Amanulla","Engineering","Welder"]
[316,1539,"Nabi Ali Mehboob Ali","Engineering","Furniture Painter"]
[317,1541,"Jaya Raman Ravi Sankar","Engineering","Carpenter"]
[318,1543,"Hany El Badry Saber Gouda","Engineering","Gardener"]
[319,1545,"Arul Joseph Zackarias","Engineering","Senior A/C Technician"]
[320,1552,"Anirudhan Pillai Satheesh","Engineering","Aluminum Technician"]
[321,1555,"Alexander  Palakkottu Samuel","Engineering","Electrical Supervisor"]
[322,1556,"Samir Gabra Gouda Wakim","Engineering","Gardener"]
[323,1560,"Gaber Bakhoum Khalil Abdelshahid","Engineering","Gardener"]
[324,1561,"Ibrahim  Mostafa Ibrahim Soliman","Engineering","Painter"]
[325,1563,"Jonathan Sena Del Rosario","Engineering","Senior A/C Technician"]
[326,1564,"Hany Shaker Gad Gaballa","Engineering","Gardener"]
[327,1566,"Mahalingam Sangar Sagunthala","Engineering","Maintenance Supervisor"]
[328,1568,"Ibrahim Gad Gadalla Gad","Engineering","Gardener"]
[329,1569,"Nafea Louka Mourkus Elkoummus Sargious","Engineering","Gardener"]
[330,1570,"Vijayanand Bojan Joghee Bojan","Engineering","Mechanical Supervisor"]
[331,1571,"Bharatha Athyadi Somayya Athyadi","Engineering","Electrical Supervisor"]
[332,1574,"Sameh Shokry Gad Gadalla","Engineering","Gardener"]
[333,1575,"Nady Nageh Agaiby Nasr Alla","Engineering","Mason"]
[334,1579,"MOHAMMED ASHPACK SHAIK HAJI","Engineering","Plumber"]
[335,1580,"JOSELITO CRUZ BULAWIT","Engineering","Mechanical Technician"]
[336,1583,"ALBERTO CIUDAD MOSQUEDA","Engineering","K&L Technician"]
[337,1586,"Roumany Boshra Shokry Shenouda","Engineering","Gardener"]
[338,1587,"Ahmed  Mohamed Abdellatif Abdelsabour","Engineering","Gardener"]
[339,1588,"Mohamed Shams El Din Mohamed Moustafa","Engineering","Assistant Maintenance Manager, Agriculture"]
[340,1589,"Gurudas Ganesh Betodkar","Engineering","Painter"]
[341,1590,"Mahmoud Mohamed Mahmoud Hussein","Engineering","Gardener"]
[342,1591,"Gaus Mohidin Mohammed Hussain","Engineering","Mason"]
[343,1592,"Maged Nageh Sabalous Girgis","Engineering","Gardener"]
[344,1593,"Baby Thomas Thekkamannil ","Engineering","Electrical Technician"]
[345,1594,"Ossama Zekry Atta Abdelsayed","Engineering","Irrigation Plumber"]
[346,1595,"Shinouda Nasser Mourad Mansour","Engineering","Gardener"]
[347,1596,"Khalaf Annas Hanna Tadrus","Engineering","Gardener"]
[348,1598,"Rafik Haddad Mouannas Girgis","Engineering","Gardener"]
[349,1599,"Mohammad Irsad Abdulrauf","Engineering","Furniture Painter"]
[350,366,"Satyawan Kashinath Sawant","Personnel","Driver, Heavy Equipment"]
[351,1221,"Ahmed Abdelhamid Farag Rady","Personnel","Representative"]
[352,1641,"Mohamed Said Mohamed Said Elmahmoudy","Personnel","Personnel Supervisor"]
[353,1647,"Mohamed Adel Shaker Abdelrehim","Personnel","Admin Clerk"]
[354,1650,"Moustafa Mohamed Abdelsalam Mohamed","Personnel","Driver, Heavy Equipment"]
[355,1651,"Mohamed Alaa El-Din Hassan Mohamed","Personnel","Researcher, Administrator"]
[356,1654,"Mostafa Samir Mostafa Nosir","Personnel","Secretary"]
[357,299,"Shahab Uddin Nur Ahmed","Staff House","Staff House Supervisor"]
[358,493,"Ganesh Jena Manmatha","Staff Cafeteria","Cook"]
[359,1811,"Roxalino Rabindranath Prabhu Fernandes","Staff Cafeteria","Assistant Chief Laborer"]
[360,1833,"Mohamed Imran Mohamed Ramzan","Staff Cafeteria","Butcher"]
[361,1836,"Salvador Fransico Viegas","Staff Cafeteria","Staff Cafeteria Supervisor"]
[362,1841,"Ezeldin Said Baioumy Amin","Staff Cafeteria","Cook"]
[363,1843,"Radin Lontoc Artieda","Staff Cafeteria","Cook"]
[364,1845,"Jose Mathew","Staff Cafeteria","Cook"]
[365,1851,"Rajesh Nadumparambil Dharmapalan","Staff Cafeteria","Assistant Chief Laborer"]
[366,1858,"Maneesh Naduveli Vasu","Staff Cafeteria","Laborer"]
[367,1859,"Mohamed Mahmoud Mohamed Ali Emara","Staff Cafeteria","Cook"]
[368,1860,"Ryan Gob Medina Cue","Staff Cafeteria","Cook"]
[369,1912,"Ivan Gorrez Tianio ","Health Club","Masseur"]
[370,1916,"Mary Ann Reyes Obado","Health Club","Masseur"]
[371,1917,"Ramesh Thankappan Thankappan","Health Club","Masseur"]
[372,1918,"Marianne Portal Prequencia","Health Club","Masseur"]
[373,504,"Mary Grace Paculanan Santos","Salon","Cashier"]
[374,1959,"Novelita Austria Cardejon","Salon","Assistant Services"]
[375,1960,"Reymond Cristobal Dalope","Salon","Manicure"]
[376,1964,"Gretchen Mae Maregmen Valdez","Salon","Laborer"]
[377,1965,"Jennifer Garcia Talplacido","Salon","Manicure"]
[{"$f":"A379+1","v":378},1966,"Islam Adel Abdelrahman Mohamed","Salon","Hairdresser"]

{"sheet":"المرحلة الأولى","index":1,"n_rows":37,"n_cols":7,"rows_kept":37,"cut":false,"hidden":false,"merged":[[36,0,36,6],[2,1,2,2],[3,1,3,2],[6,1,6,6],[7,1,7,2],[7,5,7,6],[10,1,10,2],[27,1,27,2],[28,1,28,2],[4,1,4,6],[5,1,5,6],[8,1,8,2],[8,5,8,6],[9,1,9,2],[9,5,9,6]]}
[]
[]
[null,"إدارة الموارد البشرية",null,null,null,null," "]
[null,"H R Department"]
[null,"نموذج تحديد الأهداف السنوية وتقييم الأداء "]
[null,"Goals Specification and Performance Evaluation Form "]
[null,"المرحلة الأولى (تحديد الأهداف السنوية) :                                               First Phase (Specification of the annual goals)"]
[null,"إسم الموظف\nEmployee Name",null,{"$f":"VLOOKUP($D$9,'1'!$B:$D,2,0)","v":"Abd Rabu Anwar Ali"},"تاريخ وضع الأهداف السنوية\nDate of setting the annual goals",".---- / ---- / 2018"]
[null,"الرقم الوظيفي\n.Employee No",null,114,"المسمى الوظيفي\nJob Title",{"$f":"VLOOKUP($D$9,'1'!$B:$E,4,0)","v":"Marketing Manager"}]
[null,"الإدارة\nDepartment",null,{"$f":"VLOOKUP($D$9,'1'!B:D,3,0)","v":"Reception"},"إسم المسئول المباشر\nDirect Report name"]
[null,"إسم مدير الإدارة / مساعد الرئيس التنفيذي\nName of the Department Manager or CEO assistant",null,"ناصر عبد الرزاق قدومي"]
[]
[null,"جدول الأهداف السنوية",null,null,null,null,"Annual Goals Schedule"]
[null,"الرقم\n#","الأهداف الفردية أو المسئوليات",null,null,"Individual goals and responsibilities","وزن الهدف أو المسئولية\nWeight of goal or responsibility"]
[null,1,null,null,null,null,"%"]
[null,{"$f":"B15+1","v":2},null,null,null,null,"%"]
[null,{"$f":"B16+1","v":3},null,null,null,null,"%"]
[null,4,null,null,null,null,"%"]
[null,5,null,null,null,null,"%"]
[null,6,null,null,null,null,"%"]
[null,7,null,null,null,null,"%"]
[null,8,null,null,null,null,"%"]
[null,9,null,null,null,null,"%"]
[null,{"$f":"B23+1","v":10},null,null,null,null,"%"]
[null,"مجموع أوزان الأهداف",null,null,null,"Total goals weights",1]
[]
[]
[]
[]
[]
[]
[]
[]
[]
[]
[]
[1]

{"sheet":"المرحلة الثانية","index":2,"n_rows":35,"n_cols":8,"rows_kept":35,"cut":false,"hidden":false,"merged":[[2,1,2,2],[3,1,3,2],[4,1,4,7],[5,1,5,2],[5,6,5,7],[7,6,7,7],[8,1,8,2],[5,3,5,4],[6,3,6,4],[7,3,7,4],[6,1,6,2],[6,6,6,7],[7,1,7,2],[34,0,34,7],[25,1,25,2],[24,1,24,2],[10,6,10,7],[11,6,11,7],[20,6,20,7],[21,6,21,7],[21,1,21,2],[16,6,16,7],[17,6,17,7],[18,6,18,7],[19,6,19,7],[12,6,12,7],[13,6,13,7],[14,6,14,7],[15,6,15,7]]}
[]
[]
[null,"إدارة الموارد البشرية"]
[null,"H R Department"]
[null,"المرحلة الثانية (التقييم المرحلي) :                                                                                       Second Phase (Interim evaluation)"]
[null,"إسم الموظف\nEmployee Name",null,"Mohammad Umar Mohammad Hashim",null,"تاريخ وضع الأهداف السنوية\nDate of setting the annual goals"]
[null,"الرقم الوظيفي\n.Employee No",null,894,null,"المسمى الوظيفي\nJob Title","Public Area Supervisor"]
[null,"الإدارة\nDepartment",null,"Game Center",null,"إسم المسئول المباشر\nDirect Report name"]
[null,"إسم مدير الإدارة / مساعد الرئيس التنفيذي\nName of the Department Manager or CEO assistant",null,"ناصر عبد الرزاق قدومي"]
[]
[null,"الرقم\n#","الأهداف الفردية أو المسئوليات\nIndividual goals or responsibilities","وزن الهدف أو المسئولية\nWeight of goal or responsibility","أُنجزت نعم / لا\nAccoomplished Yes / No","الملاحظات والإثباتات (المسئول المباشر)\nNotes and evidences (direct report)","الملاحظات والإثباتات (الموظف)\nNotes and evidences (employee)"]
[null,null,null,"%"]
[null,null,null,"%",null,null,null,"%"]
[null,null,null,"%",null,null,null,"%"]
[null,null,null,"%",null,null,null,"%"]
[null,null,null,"%",null,null,null,"%"]
[null,null,null,"%",null,null,null,"%"]
[null,null,null,"%",null,null,null,"%"]
[null,null,null,"%",null,null,null,"%"]
[null,null,null,"%",null,null,null,"%"]
[null,null,null,"%",null,null,null,"%"]
[null,"مجموع أوزان الأهداف\nTotal goals weights",null,1]
[]
[]
[]
[]
[]
[]
[]
[]
[]
[]
[]
[]
[2]

{"sheet":"SMART","index":3,"n_rows":18,"n_cols":13,"rows_kept":18,"cut":false,"hidden":false,"merged":[[2,0,3,14],[5,0,6,2],[5,3,6,5],[5,6,6,8],[5,9,6,11],[5,12,6,14],[9,0,9,2],[11,3,11,5],[15,9,15,11],[17,12,17,14],[13,6,13,8]]}
[]
[]
[]
[]
[]
["S",null,null,"M",null,null,"A",null,null,"R",null,null,"T"]
[]
[]
[]
["SPECIFIC"]
[]
[null,null,null,"MEASURABLE"]
[]
[null,null,null,null,null,null,"ATTAINABLE"]
[]
[null,null,null,null,null,null,null,null,null,"RELEVANT "]
[]
[null,null,null,null,null,null,null,null,null,null,null,null,"TIME SCHEDULE"]